fUST/lending_fUST_20260601
["ID","MTS","AMOUNT","RATE_DAILY","PERIOD"]
[423579646,1780248650000,-1807.05,0.00019412,2]
[423579643,1780248650000,-1567.21,0.00019412,2]
[423579644,1780248650000,-603.64,0.00019412,2]
[423579645,1780248650000,-3745.47,0.00019412,2]
[423579642,1780248650000,-500.0,0.00019412,2]
[423579718,1780248651000,-500.0,0.00019544,2]
[423579721,1780248651000,-500.0,0.00019547,2]
[423579717,1780248651000,-540.73,0.00019544,2]
[423579720,1780248651000,-500.0,0.00019547,2]
[423579716,1780248651000,-500.0,0.00019544,2]
[423579710,1780248651000,-500.0,0.00019544,2]
[423579712,1780248651000,-500.0,0.00019544,2]
[423579709,1780248651000,-500.0,0.00019544,2]
[423579713,1780248651000,-500.0,0.00019544,2]
[423579715,1780248651000,-500.0,0.00019544,2]
[423579719,1780248651000,-500.0,0.00019547,2]
[423579737,1780248651000,-591.15,0.00019656,2]
[423579724,1780248651000,-500.0,0.00019547,2]
[423579723,1780248651000,-500.0,0.00019547,2]
[423579725,1780248651000,-500.0,0.00019547,2]
[423579727,1780248651000,-500.0,0.00019547,2]
[423579734,1780248651000,-500.0,0.00019656,2]
[423579728,1780248651000,-500.0,0.00019547,2]
[423579730,1780248651000,-3078.08478054,0.00019623,2]
[423579736,1780248651000,-500.0,0.00019656,2]
[423579711,1780248651000,-500.0,0.00019544,2]
[423579729,1780248651000,-300.0,0.00019589,3]
[423579722,1780248651000,-500.0,0.00019547,2]
[423579708,1780248651000,-500.0,0.00019544,2]
[423579695,1780248651000,-500.0,0.00019544,2]
[423579714,1780248651000,-500.0,0.00019544,2]
[423579732,1780248651000,-1028.27,0.00019655,2]
[423579686,1780248651000,-500.0,0.00019544,2]
[423579687,1780248651000,-500.0,0.00019544,2]
[423579685,1780248651000,-500.0,0.00019544,2]
[423579689,1780248651000,-500.0,0.00019544,2]
[423579688,1780248651000,-500.0,0.00019544,2]
[423579691,1780248651000,-500.0,0.00019544,2]
[423579693,1780248651000,-500.0,0.00019544,2]
[423579694,1780248651000,-500.0,0.00019544,2]
[423579690,1780248651000,-500.0,0.00019544,2]
[423579707,1780248651000,-500.0,0.00019544,2]
[423579692,1780248651000,-500.0,0.00019544,2]
[423579699,1780248651000,-500.0,0.00019544,2]
[423579697,1780248651000,-500.0,0.00019544,2]
[423579700,1780248651000,-500.0,0.00019544,2]
[423579704,1780248651000,-500.0,0.00019544,2]
[423579701,1780248651000,-500.0,0.00019544,2]
[423579698,1780248651000,-519.0487105,0.00019544,2]
[423579703,1780248651000,-500.0,0.00019544,2]
[423579702,1780248651000,-500.0,0.00019544,2]
[423579705,1780248651000,-500.0,0.00019544,2]
[423579706,1780248651000,-188.32944767,0.00019544,2]
[423579696,1780248651000,-500.0,0.00019544,2]
[423579731,1780248651000,-559.57,0.00019655,2]
[423579735,1780248651000,-500.0,0.00019656,2]
[423579733,1780248651000,-500.0,0.00019655,2]
[423579759,1780248651000,-500.0,0.00019818,2]
[423579765,1780248651000,-500.0,0.00019818,2]
[423579767,1780248651000,-500.0,0.00019818,2]
[423579771,1780248651000,-500.0,0.00019818,2]
[423579769,1780248651000,-500.0,0.00019818,2]
[423579770,1780248651000,-500.0,0.00019818,2]
[423579768,1780248651000,-500.0,0.00019818,2]
[423579766,1780248651000,-500.0,0.00019818,2]
[423579775,1780248651000,-500.0,0.00019818,2]
[423579777,1780248651000,-500.0,0.00019818,2]
[423579776,1780248651000,-358.19626169,0.00019818,2]
[423579772,1780248651000,-500.0,0.00019818,2]
[423579774,1780248651000,-500.0,0.00019818,2]
[423579779,1780248651000,-500.0,0.00019818,2]
[423579778,1780248651000,-500.0,0.00019818,2]
[423579781,1780248651000,-500.0,0.00019818,2]
[423579782,1780248651000,-500.0,0.00019818,2]
[423579780,1780248651000,-454.44,0.00019818,2]
[423579784,1780248651000,-500.0,0.00019818,2]
[423579786,1780248651000,-500.0,0.00019818,2]
[423579785,1780248651000,-500.0,0.00019818,2]
[423579783,1780248651000,-500.0,0.00019818,2]
[423579726,1780248651000,-500.0,0.00019547,2]
[423579761,1780248651000,-500.0,0.00019818,2]
[423579758,1780248651000,-500.0,0.00019687,2]
[423579773,1780248651000,-388.25621613,0.00019818,2]
[423579757,1780248651000,-603.85,0.00019687,2]
[423579760,1780248651000,-500.0,0.00019818,2]
[423579738,1780248651000,-500.0,0.00019686,2]
[423579741,1780248651000,-500.0,0.00019686,2]
[423579740,1780248651000,-552.58,0.00019686,2]
[423579739,1780248651000,-1348.75,0.00019686,2]
[423579750,1780248651000,-603.91,0.00019687,2]
[423579743,1780248651000,-500.0,0.00019686,2]
[423579742,1780248651000,-534.45,0.00019686,2]
[423579745,1780248651000,-3745.47,0.00019686,2]
[423579744,1780248651000,-1567.21,0.00019686,2]
[423579747,1780248651000,-500.0,0.00019687,2]
[423579749,1780248651000,-500.0,0.00019687,2]
[423579754,1780248651000,-542.05,0.00019687,2]
[423579746,1780248651000,-1807.05,0.00019686,2]
[423579752,1780248651000,-1670.88,0.00019687,2]
[423579763,1780248651000,-500.0,0.00019818,2]
[423579751,1780248651000,-628.44,0.00019687,2]
[423579756,1780248651000,-572.53,0.00019687,2]
[423579762,1780248651000,-500.0,0.00019818,2]
[423579764,1780248651000,-500.0,0.00019818,2]
[423579753,1780248651000,-500.0,0.00019687,2]
[423579755,1780248651000,-817.3533,0.00019687,2]
[423579748,1780248651000,-944.99,0.00019687,2]
[423579831,1780248652000,-151.0,0.00019988,2]
[423579820,1780248652000,-500.0,0.00019961,2]
[423579827,1780248652000,-817.3533,0.00019961,2]
[423579841,1780248652000,-500.0,0.00020092,2]
[423579835,1780248652000,-537.6845,0.00019988,2]
[423579825,1780248652000,-500.0,0.00019961,2]
[423579819,1780248652000,-1807.05,0.0001996,2]
[423579826,1780248652000,-542.05,0.00019961,2]
[423579824,1780248652000,-1670.88,0.00019961,2]
[423579822,1780248652000,-500.0,0.00019961,2]
[423579823,1780248652000,-603.91,0.00019961,2]
[423579832,1780248652000,-151.0,0.00019988,2]
[423579828,1780248652000,-572.53,0.00019961,2]
[423579836,1780248652000,-158.0,0.0002,2]
[423579855,1780248652000,-500.0,0.00020095,2]
[423579830,1780248652000,-500.0,0.00019961,2]
[423579842,1780248652000,-586.06,0.00020092,2]
[423579837,1780248652000,-300.0,0.0002,4]
[423579840,1780248652000,-500.0,0.00020092,2]
[423579838,1780248652000,-500.0,0.00020092,2]
[423579834,1780248652000,-162.38071901,0.00019988,2]
[423579839,1780248652000,-500.0,0.00020092,2]
[423579846,1780248652000,-500.0,0.00020092,2]
[423579844,1780248652000,-315.49,0.00020092,2]
[423579854,1780248652000,-500.0,0.00020095,2]
[423579856,1780248652000,-500.0,0.00020095,2]
[423579843,1780248652000,-500.0,0.00020092,2]
[423579847,1780248652000,-500.0,0.00020092,2]
[423579829,1780248652000,-603.85,0.00019961,2]
[423579833,1780248652000,-500.0,0.00019988,2]
[423579821,1780248652000,-944.99,0.00019961,2]
[423579793,1780248652000,-1152.0,0.00019819,2]
[423579813,1780248652000,-552.58,0.0001996,2]
[423579845,1780248652000,-492.73,0.00020092,2]
[423579789,1780248652000,-500.0,0.00019818,2]
[423579790,1780248652000,-426.95036709,0.00019818,2]
[423579787,1780248652000,-500.0,0.00019818,2]
[423579788,1780248652000,-500.0,0.00019818,2]
[423579791,1780248652000,-151.0,0.00019819,2]
[423579794,1780248652000,-500.0,0.00019821,2]
[423579800,1780248652000,-500.0,0.00019821,2]
[423579795,1780248652000,-500.0,0.00019821,2]
[423579792,1780248652000,-151.0,0.00019819,2]
[423579802,1780248652000,-500.0,0.00019821,2]
[423579797,1780248652000,-500.0,0.00019821,2]
[423579798,1780248652000,-500.0,0.00019821,2]
[423579799,1780248652000,-500.0,0.00019821,2]
[423579818,1780248652000,-3745.47,0.0001996,2]
[423579801,1780248652000,-360.78248467,0.00019821,2]
[423579796,1780248652000,-500.0,0.00019821,2]
[423579805,1780248652000,-1028.27,0.00019929,2]
[423579815,1780248652000,-534.45,0.0001996,2]
[423579816,1780248652000,-500.0,0.0001996,2]
[423579817,1780248652000,-1567.21,0.0001996,2]
[423579807,1780248652000,-500.0,0.0001993,2]
[423579806,1780248652000,-500.0,0.00019929,2]
[423579804,1780248652000,-559.57,0.00019929,2]
[423579808,1780248652000,-500.0,0.0001993,2]
[423579814,1780248652000,-500.0,0.0001996,2]
[423579809,1780248652000,-264.2,0.0001993,2]
[423579810,1780248652000,-591.15,0.0001993,2]
[423579811,1780248652000,-500.0,0.0001996,2]
[423579812,1780248652000,-1348.75,0.0001996,2]
[423579803,1780248652000,-500.0,0.00019821,2]
[423579853,1780248652000,-500.0,0.00020092,2]
[423579917,1780248652000,-944.99,0.00020509,2]
[423579850,1780248652000,-500.0,0.00020092,2]
[423579888,1780248652000,-500.0,0.00020366,2]
[423579885,1780248652000,-500.0,0.00020235,2]
[423579897,1780248652000,-155.77,0.00020453,2]
[423579893,1780248652000,-206.76,0.00020369,2]
[423579890,1780248652000,-266.48,0.00020366,2]
[423579892,1780248652000,-500.0,0.00020366,2]
[423579887,1780248652000,-500.0,0.00020366,2]
[423579894,1780248652000,-150.75,0.00020403,2]
[423579895,1780248652000,-150.75,0.00020453,2]
[423579891,1780248652000,-500.0,0.00020366,2]
[423579898,1780248652000,-559.57,0.00020477,2]
[423579903,1780248652000,-591.15,0.00020478,2]
[423579902,1780248652000,-500.0,0.00020478,2]
[423579848,1780248652000,-500.0,0.00020092,2]
[423579889,1780248652000,-500.0,0.00020366,2]
[423579904,1780248652000,-151.44,0.000205,2]
[423579906,1780248652000,-162.18,0.00020503,2]
[423579911,1780248652000,-500.0,0.00020508,2]
[423579909,1780248652000,-1348.75,0.00020508,2]
[423579901,1780248652000,-500.0,0.00020478,2]
[423579905,1780248652000,-150.75,0.00020503,2]
[423579907,1780248652000,-155.77,0.00020503,2]
[423579908,1780248652000,-500.0,0.00020508,2]
[423579910,1780248652000,-552.58,0.00020508,2]
[423579913,1780248652000,-500.0,0.00020508,2]
[423579912,1780248652000,-534.45,0.00020508,2]
[423579914,1780248652000,-1567.21,0.00020508,2]
[423579915,1780248652000,-3745.47,0.00020508,2]
[423579918,1780248652000,-603.91,0.00020509,2]
[423579916,1780248652000,-1807.05,0.00020508,2]
[423579900,1780248652000,-500.0,0.00020477,2]
[423579896,1780248652000,-162.18,0.00020453,2]
[423579899,1780248652000,-1028.27,0.00020477,2]
[423579881,1780248652000,-542.05,0.00020235,2]
[423579886,1780248652000,-158.0,0.00020337,30]
[423579851,1780248652000,-500.0,0.00020092,2]
[423579852,1780248652000,-500.0,0.00020092,2]
[423579849,1780248652000,-637.63239537,0.00020092,2]
[423579858,1780248652000,-607.33909288,0.00020095,2]
[423579869,1780248652000,-500.0,0.00020234,2]
[423579859,1780248652000,-1032.56454891,0.00020116,2]
[423579860,1780248652000,-559.57,0.00020203,2]
[423579868,1780248652000,-552.58,0.00020234,2]
[423579863,1780248652000,-500.0,0.00020204,2]
[423579870,1780248652000,-534.45,0.00020234,2]
[423579861,1780248652000,-1028.27,0.00020203,2]
[423579862,1780248652000,-500.0,0.00020203,2]
[423579864,1780248652000,-500.0,0.00020204,2]
[423579865,1780248652000,-591.15,0.00020204,2]
[423579857,1780248652000,-500.0,0.00020095,2]
[423579867,1780248652000,-1348.75,0.00020234,2]
[423579866,1780248652000,-500.0,0.00020234,2]
[423579882,1780248652000,-817.3533,0.00020235,2]
[423579884,1780248652000,-603.85,0.00020235,2]
[423579880,1780248652000,-500.0,0.00020235,2]
[423579878,1780248652000,-603.91,0.00020235,2]
[423579877,1780248652000,-530.56,0.00020235,2]
[423579879,1780248652000,-1670.88,0.00020235,2]
[423579883,1780248652000,-572.53,0.00020235,2]
[423579872,1780248652000,-1567.21,0.00020234,2]
[423579875,1780248652000,-643.5,0.00020235,2]
[423579873,1780248652000,-3745.47,0.00020234,2]
[423579874,1780248652000,-1807.05,0.00020234,2]
[423579871,1780248652000,-500.0,0.00020234,2]
[423579876,1780248652000,-944.99,0.00020235,2]
[423579961,1780248653000,-162.18,0.00020703,2]
[423579959,1780248653000,-151.44,0.000207,2]
[423579955,1780248653000,-326.1877401,0.00020691,2]
[423579963,1780248653000,-800.93707747,0.00020723,120]
[423579960,1780248653000,-150.75,0.00020703,2]
[423579966,1780248653000,-532.0,0.00020726,2]
[423579958,1780248653000,-326.18774,0.00020691,2]
[423579956,1780248653000,-151.0,0.00020691,2]
[423579957,1780248653000,-151.0,0.00020691,2]
[423579965,1780248653000,-532.0,0.00020726,2]
[423579967,1780248653000,-532.0,0.00020726,2]
[423579954,1780248653000,-456.9255797,0.00020691,2]
[423579950,1780248653000,-151.0,0.00020691,2]
[423579962,1780248653000,-155.77,0.00020703,2]
[423579964,1780248653000,-532.0,0.00020726,2]
[423579951,1780248653000,-326.18774,0.00020691,2]
[423579980,1780248653000,-155.77,0.00020753,2]
[423579979,1780248653000,-162.21077646,0.00020753,2]
[423579981,1780248653000,-456.9255797,0.00020778,2]
[423579968,1780248653000,-532.0,0.00020726,2]
[423579973,1780248653000,-536.0,0.00020726,2]
[423579971,1780248653000,-532.0,0.00020726,2]
[423579970,1780248653000,-532.0,0.00020726,2]
[423579975,1780248653000,-1028.27,0.00020751,2]
[423579978,1780248653000,-150.75,0.00020753,2]
[423579974,1780248653000,-559.57,0.00020751,2]
[423579977,1780248653000,-591.15,0.00020752,2]
[423579972,1780248653000,-532.0,0.00020726,2]
[423579976,1780248653000,-500.0,0.00020752,2]
[423579982,1780248653000,-326.18774,0.00020778,2]
[423579969,1780248653000,-532.0,0.00020726,2]
[423579941,1780248653000,-162.18,0.00020653,2]
[423579991,1780248653000,-3745.47,0.00020782,2]
[423579952,1780248653000,-456.9255799,0.00020691,2]
[423579985,1780248653000,-1348.75,0.00020782,2]
[423579921,1780248653000,-542.05,0.00020509,2]
[423579923,1780248653000,-572.53,0.00020509,2]
[423579924,1780248653000,-603.85,0.00020509,2]
[423579922,1780248653000,-817.3533,0.00020509,2]
[423579925,1780248653000,-500.0,0.00020509,2]
[423579920,1780248653000,-500.0,0.00020509,2]
[423579919,1780248653000,-1670.88,0.00020509,2]
[423579929,1780248653000,-150.75,0.00020553,2]
[423579934,1780248653000,-155.77,0.00020603,2]
[423579930,1780248653000,-162.18,0.00020553,2]
[423579937,1780248653000,-500.0,0.0002064,2]
[423579938,1780248653000,-500.0,0.0002064,2]
[423579939,1780248653000,-500.0,0.0002064,2]
[423579935,1780248653000,-187.63,0.0002064,2]
[423579928,1780248653000,-151.39,0.00020548,2]
[423579931,1780248653000,-155.77,0.00020553,2]
[423579946,1780248653000,-2391.77310372,0.00020691,2]
[423579953,1780248653000,-151.0,0.00020691,2]
[423579948,1780248653000,-456.9255797,0.00020691,2]
[423579945,1780248653000,-208.22079004,0.00020683,2]
[423579940,1780248653000,-150.75,0.00020653,2]
[423579943,1780248653000,-152.0,0.00020667,30]
[423579949,1780248653000,-318.7473909,0.00020691,2]
[423579942,1780248653000,-155.77,0.00020653,2]
[423579947,1780248653000,-151.0,0.00020691,2]
[423579933,1780248653000,-162.18,0.00020603,2]
[423579936,1780248653000,-500.0,0.0002064,2]
[423579932,1780248653000,-150.75,0.00020603,2]
[423579927,1780248653000,-557.5788265,0.00020536,2]
[423579926,1780248653000,-501.57427692,0.00020536,2]
[423579944,1780248653000,-158.0,0.00020674,120]
[423579984,1780248653000,-500.0,0.00020782,2]
[423580000,1780248653000,-603.85,0.00020783,2]
[423579988,1780248653000,-534.45,0.00020782,2]
[423580016,1780248653000,-537.68,0.00020914,2]
[423580020,1780248653000,-151.0,0.00020978,2]
[423580025,1780248653000,-155.77,0.00021003,2]
[423580035,1780248653000,-3000.0,0.0002104,2]
[423580028,1780248653000,-3000.0,0.0002102,2]
[423580033,1780248653000,-591.15,0.00021026,2]
[423580024,1780248653000,-150.75,0.00021003,2]
[423580027,1780248653000,-348.6130088,0.0002101,7]
[423580026,1780248653000,-3000.0,0.0002101,2]
[423580034,1780248653000,-3000.0,0.0002103,2]
[423580032,1780248653000,-404.26,0.00021026,2]
[423580029,1780248653000,-348.6130088,0.0002102,7]
[423580031,1780248653000,-1028.27,0.00021025,2]
[423580030,1780248653000,-559.57,0.00021025,2]
[423580018,1780248653000,-155.77,0.00020953,2]
[423580038,1780248653000,-155.77,0.00021053,2]
[423580039,1780248653000,-500.0,0.00021056,2]
[423580037,1780248653000,-150.75,0.00021053,2]
[423580047,1780248653000,-944.99,0.00021057,2]
[423580041,1780248653000,-552.58,0.00021056,2]
[423580045,1780248653000,-3745.47,0.00021056,2]
[423580044,1780248653000,-1567.21,0.00021056,2]
[423580046,1780248653000,-1807.05,0.00021056,2]
[423580042,1780248653000,-534.45,0.00021056,2]
[423580040,1780248653000,-1348.75,0.00021056,2]
[423580043,1780248653000,-500.0,0.00021056,2]
[423580053,1780248653000,-572.53,0.00021057,2]
[423580051,1780248653000,-542.05,0.00021057,2]
[423580049,1780248653000,-1670.88,0.00021057,2]
[423579986,1780248653000,-552.58,0.00020782,2]
[423580036,1780248653000,-3000.0,0.0002105,2]
[423580015,1780248653000,-500.0,0.00020914,2]
[423580048,1780248653000,-603.91,0.00021057,2]
[423580017,1780248653000,-150.75,0.00020953,2]
[423580052,1780248653000,-817.3533,0.00021057,2]
[423579990,1780248653000,-1567.21,0.00020782,2]
[423579987,1780248653000,-324.72,0.00020782,2]
[423579992,1780248653000,-1807.05,0.00020782,2]
[423579989,1780248653000,-500.0,0.00020782,2]
[423579983,1780248653000,-410.918564,0.00020778,2]
[423579995,1780248653000,-1670.88,0.00020783,2]
[423579993,1780248653000,-944.99,0.00020783,2]
[423580019,1780248653000,-326.18774,0.00020978,2]
[423579997,1780248653000,-542.05,0.00020783,2]
[423580007,1780248653000,-151.5,0.00020866,2]
[423579996,1780248653000,-500.0,0.00020783,2]
[423580006,1780248653000,-155.77,0.00020853,2]
[423580001,1780248653000,-500.0,0.00020783,2]
[423579999,1780248653000,-572.53,0.00020783,2]
[423579994,1780248653000,-603.91,0.00020783,2]
[423580008,1780248653000,-151.5,0.00020866,2]
[423580023,1780248653000,-158.0,0.00021,2]
[423580009,1780248653000,-184.31060936,0.00020866,2]
[423580022,1780248653000,-348.6130088,0.00021,7]
[423580014,1780248653000,-500.0,0.00020914,2]
[423580021,1780248653000,-1066.68359627,0.00021,2]
[423580011,1780248653000,-150.75,0.00020903,2]
[423580012,1780248653000,-155.77,0.00020903,2]
[423580013,1780248653000,-500.0,0.00020914,2]
[423580003,1780248653000,-155.77,0.00020803,2]
[423580004,1780248653000,-893.384765,0.00020847,2]
[423580005,1780248653000,-150.75,0.00020853,2]
[423580002,1780248653000,-150.75,0.00020803,2]
[423579998,1780248653000,-817.3533,0.00020783,2]
[423580050,1780248653000,-500.0,0.00021057,2]
[423580010,1780248653000,-151.44,0.000209,2]
[423580092,1780248654000,-151.0,0.0002121,2]
[423580102,1780248654000,-3000.0,0.0002128,2]
[423580099,1780248654000,-155.78136295,0.00021253,2]
[423580098,1780248654000,-150.75,0.00021253,2]
[423580095,1780248654000,-3000.0,0.0002123,2]
[423580097,1780248654000,-3000.0,0.0002125,2]
[423580085,1780248654000,-500.0,0.00021188,2]
[423580094,1780248654000,-3000.0,0.0002122,2]
[423580096,1780248654000,-3000.0,0.0002124,2]
[423580091,1780248654000,-3000.0,0.0002121,2]
[423580086,1780248654000,-3000.0,0.0002119,2]
[423580081,1780248654000,-3000.0,0.0002117,2]
[423580093,1780248654000,-226.985954,0.0002121,2]
[423580100,1780248654000,-3000.0,0.0002126,2]
[423580114,1780248654000,-552.58,0.0002133,2]
[423580105,1780248654000,-1028.36,0.00021299,2]
[423580103,1780248654000,-3000.0,0.0002129,2]
[423580101,1780248654000,-3000.0,0.0002127,2]
[423580112,1780248654000,-500.0,0.0002133,2]
[423580106,1780248654000,-3000.0,0.000213,2]
[423580107,1780248654000,-591.15,0.000213,2]
[423580111,1780248654000,-3000.0,0.0002133,2]
[423580108,1780248654000,-150.75,0.00021303,2]
[423580110,1780248654000,-3000.0,0.0002132,2]
[423580109,1780248654000,-3000.0,0.0002131,2]
[423580113,1780248654000,-1348.75,0.0002133,2]
[423580115,1780248654000,-534.45,0.0002133,2]
[423580124,1780248654000,-542.05,0.00021331,2]
[423580083,1780248654000,-500.0,0.00021188,2]
[423580104,1780248654000,-559.6,0.00021299,2]
[423580082,1780248654000,-3000.0,0.0002118,2]
[423580073,1780248654000,-3000.0,0.0002111,2]
[423580078,1780248654000,-150.75,0.00021153,2]
[423580116,1780248654000,-500.0,0.0002133,2]
[423580061,1780248654000,-3000.0,0.0002109,2]
[423580058,1780248654000,-151.0,0.0002107,2]
[423580055,1780248654000,-500.0,0.00021057,2]
[423580060,1780248654000,-3000.0,0.0002108,2]
[423580059,1780248654000,-151.0,0.0002107,2]
[423580057,1780248654000,-3000.0,0.0002107,2]
[423580054,1780248654000,-603.85,0.00021057,2]
[423580063,1780248654000,-1987.6699,0.000211,2]
[423580068,1780248654000,-3000.0,0.000211,2]
[423580072,1780248654000,-155.77,0.00021103,2]
[423580064,1780248654000,-1742.595,0.000211,2]
[423580069,1780248654000,-387.26,0.000211,2]
[423580071,1780248654000,-150.75,0.00021103,2]
[423580067,1780248654000,-387.26,0.000211,2]
[423580075,1780248654000,-3000.0,0.0002113,2]
[423580062,1780248654000,-1990.6299,0.000211,2]
[423580066,1780248654000,-1742.59,0.000211,2]
[423580065,1780248654000,-1742.595,0.000211,2]
[423580070,1780248654000,-151.44,0.000211,2]
[423580074,1780248654000,-3000.0,0.0002112,2]
[423580077,1780248654000,-3000.0,0.0002115,2]
[423580089,1780248654000,-150.75,0.00021203,2]
[423580088,1780248654000,-151.44,0.000212,2]
[423580090,1780248654000,-155.77,0.00021203,2]
[423580087,1780248654000,-3000.0,0.000212,2]
[423580079,1780248654000,-155.77,0.00021153,2]
[423580080,1780248654000,-3000.0,0.0002116,2]
[423580084,1780248654000,-500.0,0.00021188,2]
[423580076,1780248654000,-3000.0,0.0002114,2]
[423580117,1780248654000,-1567.21,0.0002133,2]
[423580056,1780248654000,-3000.0,0.0002106,2]
[423580118,1780248654000,-3745.47,0.0002133,2]
[423580165,1780248654000,-552.58,0.00021604,2]
[423580160,1780248654000,-151.0,0.000216,2]
[423580157,1780248654000,-456.9255797,0.000215,2]
[423580159,1780248654000,-150.75,0.00021553,2]
[423580155,1780248654000,-500.0,0.00021462,2]
[423580156,1780248654000,-500.0,0.00021462,2]
[423580166,1780248654000,-534.45,0.00021604,2]
[423580158,1780248654000,-150.75,0.00021503,2]
[423580161,1780248654000,-151.44,0.000216,2]
[423580164,1780248654000,-1348.75,0.00021604,2]
[423580162,1780248654000,-150.75,0.00021603,2]
[423580163,1780248654000,-500.0,0.00021604,2]
[423580168,1780248654000,-1567.21,0.00021604,2]
[423580178,1780248654000,-2981.36494021,0.00021607,2]
[423580154,1780248654000,-500.0,0.00021462,2]
[423580180,1780248654000,-158.0,0.00021674,120]
[423580172,1780248654000,-603.91,0.00021605,2]
[423580175,1780248654000,-572.53,0.00021605,2]
[423580174,1780248654000,-542.05,0.00021605,2]
[423580169,1780248654000,-3745.47,0.00021604,2]
[423580171,1780248654000,-944.99,0.00021605,2]
[423580170,1780248654000,-1807.05,0.00021604,2]
[423580177,1780248654000,-1755.49958206,0.00021605,5]
[423580176,1780248654000,-603.85,0.00021605,2]
[423580173,1780248654000,-1670.88,0.00021605,2]
[423580181,1780248654000,-326.18774,0.00021678,2]
[423580182,1780248654000,-456.9255797,0.00021678,2]
[423580183,1780248654000,-151.44,0.000217,2]
[423580184,1780248654000,-150.75,0.00021703,2]
[423580125,1780248654000,-817.3533,0.00021331,2]
[423580167,1780248654000,-500.0,0.00021604,2]
[423580152,1780248654000,-150.75,0.00021453,2]
[423580179,1780248654000,-150.75,0.00021653,2]
[423580149,1780248654000,-150.75,0.00021403,2]
[423580147,1780248654000,-151.0,0.000214,2]
[423580122,1780248654000,-1670.88,0.00021331,2]
[423580119,1780248654000,-1807.05,0.0002133,2]
[423580121,1780248654000,-603.91,0.00021331,2]
[423580123,1780248654000,-303.44,0.00021331,2]
[423580126,1780248654000,-572.53,0.00021331,2]
[423580128,1780248654000,-500.0,0.00021331,2]
[423580130,1780248654000,-3000.0,0.0002134,2]
[423580133,1780248654000,-3000.0,0.0002136,2]
[423580135,1780248654000,-3000.0,0.0002138,2]
[423580132,1780248654000,-150.75,0.00021353,2]
[423580129,1780248654000,-158.0,0.00021337,30]
[423580131,1780248654000,-3000.0,0.0002135,2]
[423580136,1780248654000,-3000.0,0.0002139,2]
[423580134,1780248654000,-3000.0,0.0002137,2]
[423580120,1780248654000,-944.99,0.00021331,2]
[423580138,1780248654000,-151.0,0.000214,2]
[423580127,1780248654000,-603.85,0.00021331,2]
[423580148,1780248654000,-151.44,0.000214,2]
[423580142,1780248654000,-326.18774,0.000214,2]
[423580143,1780248654000,-195.6382713,0.000214,2]
[423580153,1780248654000,-166.0,0.00021453,120]
[423580146,1780248654000,-151.0,0.000214,2]
[423580140,1780248654000,-326.18774,0.000214,2]
[423580151,1780248654000,-185.0,0.00021415,2]
[423580144,1780248654000,-263.8402346,0.000214,2]